[Event "*** Titled Tuesday 3|2 Blitz"]
[Site "Chess.com"]
[Date "2015.11.03"]
[Round "4"]
[White "kharposh"]
[Black "saraswathii"]
[Result "1-0"]
[WhiteElo "2089"]
[BlackElo "1899"]
[TimeControl "180+2"]
[EndTime "17:44:59 PST"]
[Termination "kharposh won on time"]

1. e4 {[%clk 0:03:01.9]} 1... c5 {[%clk 0:02:51.9]} 2. Nf3 {[%clk 0:03:01.8]}
2... e6 {[%clk 0:02:51.1]} 3. d4 {[%clk 0:03:02.7]} 3... cxd4 {[%clk 0:02:50.8]}
4. Nxd4 {[%clk 0:03:04.6]} 4... Nf6 {[%clk 0:02:50.3]} 5. Nc3 {[%clk 0:03:04.4]}
5... Nc6 {[%clk 0:02:49.5]} 6. Bc4 {[%clk 0:03:01.1]} 6... Bb4 {[%clk
0:02:48.5]} 7. O-O {[%clk 0:02:59.4]} 7... O-O {[%clk 0:02:42]} 8. Ndb5 {[%clk
0:02:33.2]} 8... a6 {[%clk 0:02:28.9]} 9. Nd6 {[%clk 0:02:32.4]} 9... Qe7 {[%clk
0:02:22.8]} 10. Bf4 {[%clk 0:02:27.9]} 10... e5 {[%clk 0:02:06]} 11. Nf5 {[%clk
0:02:26.6]} 11... Qd8 {[%clk 0:01:50.3]} 12. Bg5 {[%clk 0:02:27.4]} 12... h6
{[%clk 0:01:30]} 13. Bxf6 {[%clk 0:02:15.6]} 13... Qxf6 {[%clk 0:01:19.6]} 14.
Nd5 {[%clk 0:02:16.4]} 14... Qd8 {[%clk 0:01:16.6]} 15. Qg4 {[%clk 0:01:59]}
15... Qg5 {[%clk 0:00:59.1]} 16. Qxg5 {[%clk 0:01:43.9]} 16... hxg5 {[%clk
0:01:01]} 17. Nxb4 {[%clk 0:01:43.2]} 17... Nxb4 {[%clk 0:00:57.5]} 18. c3
{[%clk 0:01:44]} 18... Nc6 {[%clk 0:00:51.5]} 19. Rfd1 {[%clk 0:01:35.9]} 19...
Rd8 {[%clk 0:00:42.9]} 20. Rd6 {[%clk 0:01:32.7]} 20... Na5 {[%clk 0:00:36.7]}
21. Bd5 {[%clk 0:01:29.4]} 21... Kf8 {[%clk 0:00:22.3]} 22. Rd1 {[%clk 0:01:29]}
22... Rb8 {[%clk 0:00:14.7]} 23. f3 {[%clk 0:01:22.1]} 23... b5 {[%clk
0:00:13.2]} 24. b4 {[%clk 0:01:18.2]} 24... Nc4 {[%clk 0:00:10.9]} 25. Bxc4
{[%clk 0:01:18.4]} 25... bxc4 {[%clk 0:00:10.9]} 26. a4 {[%clk 0:01:16.6]} 26...
g6 {[%clk 0:00:09.4]} 27. Ne3 {[%clk 0:01:15]} 27... Ke7 {[%clk 0:00:08.6]} 28.
Nxc4 {[%clk 0:01:10.7]} 28... f6 {[%clk 0:00:09.4]} 29. Nb6 {[%clk 0:01:09.7]}
29... Rb7 {[%clk 0:00:05.9]} 30. a5 {[%clk 0:01:09.6]} 30... Rh8 {[%clk
0:00:02.5]} 31. c4 {[%clk 0:01:07.2]} 1-0

[Event "*** Titled Tuesday 3|2 Blitz"]
[Site "Chess.com"]
[Date "2015.11.03"]
[Round "4"]
[White "chesstatour"]
[Black "LePlusMortel"]
[Result "0-1"]
[WhiteElo "1931"]
[BlackElo "2422"]
[TimeControl "180+2"]
[EndTime "17:46:35 PST"]
[Termination "LePlusMortel won by resignation"]

1. d4 {[%clk 0:02:59.2]} 1... Nf6 {[%clk 0:03:00.4]} 2. c4 {[%clk 0:02:58.5]}
2... c5 {[%clk 0:03:01.4]} 3. Nf3 {[%clk 0:02:58]} 3... cxd4 {[%clk 0:03:01.3]}
4. Nxd4 {[%clk 0:02:59.9]} 4... g6 {[%clk 0:03:02.4]} 5. Nc3 {[%clk 0:03:01]}
5... Bg7 {[%clk 0:03:04]} 6. e4 {[%clk 0:03:02.6]} 6... d6 {[%clk 0:03:04.4]} 7.
Be2 {[%clk 0:03:04]} 7... O-O {[%clk 0:03:05.4]} 8. O-O {[%clk 0:03:05.6]} 8...
Nc6 {[%clk 0:03:06.9]} 9. Be3 {[%clk 0:03:06.4]} 9... Bd7 {[%clk 0:03:08.1]} 10.
Rc1 {[%clk 0:03:06.9]} 10... Nxd4 {[%clk 0:03:08.2]} 11. Bxd4 {[%clk 0:03:07.7]}
11... Bc6 {[%clk 0:03:09.9]} 12. f3 {[%clk 0:03:07.8]} 12... Bh6 {[%clk
0:03:11.1]} 13. Rc2 {[%clk 0:03:07.5]} 13... Nh5 {[%clk 0:03:12.4]} 14. g3
{[%clk 0:03:05.7]} 14... e5 {[%clk 0:03:10.9]} 15. Bf2 {[%clk 0:03:04.2]} 15...
f5 {[%clk 0:03:10]} 16. f4 {[%clk 0:02:52.2]} 16... exf4 {[%clk 0:02:08.7]} 17.
Bxh5 {[%clk 0:02:48.5]} 17... fxg3 {[%clk 0:02:09.6]} 18. Bxg3 {[%clk
0:02:16.1]} 18... f4 {[%clk 0:02:09.7]} 19. Bf2 {[%clk 0:01:15.7]} 19... gxh5
{[%clk 0:01:55.2]} 20. Qxh5 {[%clk 0:01:17.6]} 20... Qg5+ {[%clk 0:01:40.8]} 21.
Qxg5+ {[%clk 0:01:18]} 21... Bxg5 {[%clk 0:01:42.7]} 22. Nd5 {[%clk 0:01:05.2]}
22... Rae8 {[%clk 0:01:37.8]} 23. Re1 {[%clk 0:00:46.3]} 23... b6 {[%clk
0:01:09.6]} 24. Bd4 {[%clk 0:00:39.6]} 24... Kf7 {[%clk 0:01:10.7]} 25. Rf1
{[%clk 0:00:26.1]} 25... Rxe4 {[%clk 0:01:03.8]} 26. Bf2 {[%clk 0:00:11.5]}
26... Kg6 {[%clk 0:00:53]} 27. Rd1 {[%clk 0:00:10.3]} 27... Kf5 {[%clk
0:00:46.9]} 28. h4 {[%clk 0:00:06.7]} 28... Bh6 {[%clk 0:00:47.5]} 29. b4 {[%clk
0:00:03.3]} 29... Rg8+ {[%clk 0:00:47.9]} 30. Kf1 {[%clk 0:00:03.8]} 30... f3
{[%clk 0:00:19.6]} 31. Re1 {[%clk 0:00:02.8]} 31... Rxe1+ {[%clk 0:00:16.5]} 32.
Bxe1 {[%clk 0:00:04.7]} 32... Re8 {[%clk 0:00:17.3]} 33. Bf2 {[%clk 0:00:05.3]}
33... Bxd5 {[%clk 0:00:17.9]} 34. cxd5 {[%clk 0:00:06.1]} 34... Bf4 {[%clk
0:00:19.2]} 35. Rc4 {[%clk 0:00:06.8]} 35... h5 {[%clk 0:00:20.3]} 36. Rc3
{[%clk 0:00:06.5]} 36... Kg4 {[%clk 0:00:20.6]} 37. Rc4 {[%clk 0:00:07.4]} 37...
Re5 {[%clk 0:00:22.1]} 38. a4 {[%clk 0:00:08]} 38... Rxd5 {[%clk 0:00:21.8]} 39.
Rd4 {[%clk 0:00:07.5]} 39... Rxd4 {[%clk 0:00:22.6]} 40. Bxd4 {[%clk 0:00:09.3]}
40... Bd2 {[%clk 0:00:23]} 41. b5 {[%clk 0:00:08.2]} 41... Bb4 {[%clk
0:00:24.5]} 42. Be3 {[%clk 0:00:09]} 42... Bc5 {[%clk 0:00:25.7]} 43. Bd2 {[%clk
0:00:10.7]} 43... Kxh4 {[%clk 0:00:26.5]} 44. a5 {[%clk 0:00:12.6]} 44... Kg4
{[%clk 0:00:27.8]} 45. a6 {[%clk 0:00:13.3]} 45... d5 {[%clk 0:00:27.3]} 46. Bc3
{[%clk 0:00:14]} 46... Bd6 {[%clk 0:00:28.3]} 47. Bd2 {[%clk 0:00:15.5]} 47...
d4 {[%clk 0:00:29.2]} 48. Bh6 {[%clk 0:00:16.2]} 48... Kf5 {[%clk 0:00:29.5]}
49. Bg7 {[%clk 0:00:17]} 49... Ke4 {[%clk 0:00:31]} 50. Bf6 {[%clk 0:00:17.7]}
50... Kd5 {[%clk 0:00:32.2]} 51. Bd8 {[%clk 0:00:18.5]} 51... Kc5 {[%clk
0:00:33.6]} 0-1

[Event "*** Titled Tuesday 3|2 Blitz"]
[Site "Chess.com"]
[Date "2015.11.03"]
[Round "4"]
[White "GrigorGrigorov"]
[Black "ItalianMachine"]
[Result "1-0"]
[WhiteElo "2414"]
[BlackElo "2251"]
[TimeControl "180+2"]
[EndTime "17:48:12 PST"]
[Termination "GrigorGrigorov won by resignation"]

1. d4 {[%clk 0:03:01.9]} 1... Nf6 {[%clk 0:03:00.1]} 2. Nf3 {[%clk 0:03:01]}
2... g6 {[%clk 0:03:01.2]} 3. g3 {[%clk 0:03:01.4]} 3... Bg7 {[%clk 0:03:02.3]}
4. Bg2 {[%clk 0:03:02.9]} 4... O-O {[%clk 0:03:03.7]} 5. O-O {[%clk 0:03:03.6]}
5... d5 {[%clk 0:03:01.4]} 6. c4 {[%clk 0:03:03.9]} 6... c6 {[%clk 0:03:02.3]}
7. Nbd2 {[%clk 0:03:04.3]} 7... a6 {[%clk 0:03:00.8]} 8. b3 {[%clk 0:03:03.3]}
8... Nbd7 {[%clk 0:02:59.5]} 9. Bb2 {[%clk 0:03:00.6]} 9... Qc7 {[%clk
0:02:59.2]} 10. Rc1 {[%clk 0:02:59.3]} 10... e6 {[%clk 0:02:56.5]} 11. Ne1
{[%clk 0:02:57.6]} 11... b5 {[%clk 0:02:57.4]} 12. Nd3 {[%clk 0:02:57.9]} 12...
Rb8 {[%clk 0:02:56]} 13. cxd5 {[%clk 0:02:57.8]} 13... exd5 {[%clk 0:02:55.7]}
14. Nb4 {[%clk 0:02:49.6]} 14... Bb7 {[%clk 0:02:47.1]} 15. Nxd5 {[%clk
0:02:44.4]} 15... Nxd5 {[%clk 0:02:45.5]} 16. Bxd5 {[%clk 0:02:45.2]} 16... Qd6
{[%clk 0:02:46.8]} 17. Bg2 {[%clk 0:02:45]} 17... f5 {[%clk 0:02:41.5]} 18. e3
{[%clk 0:02:41.8]} 18... Rbc8 {[%clk 0:02:36.3]} 19. Rc2 {[%clk 0:02:40.7]}
19... Nb6 {[%clk 0:02:21.1]} 20. Qc1 {[%clk 0:02:25.6]} 20... Rf7 {[%clk
0:02:10.4]} 21. Ba3 {[%clk 0:02:19.7]} 21... Qd7 {[%clk 0:02:10.3]} 22. Nf3
{[%clk 0:02:12.2]} 22... Nd5 {[%clk 0:02:10.7]} 23. Ne1 {[%clk 0:02:10.9]} 23...
a5 {[%clk 0:02:08.3]} 24. Nd3 {[%clk 0:02:10.6]} 24... Ba8 {[%clk 0:01:49.2]}
25. Rd1 {[%clk 0:02:02.9]} 25... b4 {[%clk 0:01:48.9]} 26. Bb2 {[%clk
0:02:03.9]} 26... Re7 {[%clk 0:01:45.8]} 27. a3 {[%clk 0:01:45.7]} 27... Rb8
{[%clk 0:01:41.4]} 28. axb4 {[%clk 0:01:44.1]} 28... axb4 {[%clk 0:01:42.7]} 29.
Rc4 {[%clk 0:01:42.1]} 29... Qd6 {[%clk 0:01:36]} 30. Qd2 {[%clk 0:01:30.1]}
30... Reb7 {[%clk 0:01:33.3]} 31. Ra1 {[%clk 0:01:29.1]} 31... Rb5 {[%clk
0:01:31.5]} 32. Qc2 {[%clk 0:01:26.2]} 32... Bb7 {[%clk 0:01:27.2]} 33. Ra7
{[%clk 0:01:25.4]} 33... Nb6 {[%clk 0:01:09.3]} 34. Rc5 {[%clk 0:01:04]} 34...
Nc8 {[%clk 0:00:44.1]} 35. Qc4+ {[%clk 0:00:50.4]} 35... Kh8 {[%clk 0:00:42.7]}
36. Ra1 {[%clk 0:00:42.7]} 36... Nb6 {[%clk 0:00:41.6]} 37. Qc2 {[%clk
0:00:42.8]} 37... Nd5 {[%clk 0:00:37.8]} 38. Ra7 {[%clk 0:00:37.8]} 38... h6
{[%clk 0:00:36.8]} 39. Bxd5 {[%clk 0:00:35.4]} 39... Rxc5 {[%clk 0:00:35.3]} 40.
Qxc5 {[%clk 0:00:26.2]} 40... Qxd5 {[%clk 0:00:32.7]} 41. Qxd5 {[%clk 0:00:26]}
41... cxd5 {[%clk 0:00:34.1]} 42. Nc5 {[%clk 0:00:24.6]} 42... Bc6 {[%clk
0:00:34.3]} 43. Ra6 {[%clk 0:00:23.4]} 43... Be8 {[%clk 0:00:34.3]} 44. Ne6
{[%clk 0:00:20.3]} 44... Bf6 {[%clk 0:00:28.2]} 45. Nf4 {[%clk 0:00:20.8]} 45...
Kg7 {[%clk 0:00:29.5]} 46. Nxd5 {[%clk 0:00:21.2]} 46... Bg5 {[%clk 0:00:30.2]}
47. h4 {[%clk 0:00:21.6]} 47... Bd8 {[%clk 0:00:31.4]} 48. Nf4 {[%clk
0:00:22.1]} 48... Bf7 {[%clk 0:00:32.5]} 49. Ne6+ {[%clk 0:00:22.8]} 49... Kg8
{[%clk 0:00:31.8]} 50. d5 {[%clk 0:00:22]} 50... Be7 {[%clk 0:00:22.2]} 51. Bd4
{[%clk 0:00:21.9]} 51... g5 {[%clk 0:00:15]} 52. hxg5 {[%clk 0:00:22.1]} 52...
hxg5 {[%clk 0:00:16.5]} 53. Kg2 {[%clk 0:00:23.3]} 53... Kh7 {[%clk 0:00:17.5]}
54. Ra7 {[%clk 0:00:18.7]} 54... Re8 {[%clk 0:00:16]} 55. Nxg5+ {[%clk
0:00:17.2]} 55... Bxg5 {[%clk 0:00:17.2]} 56. Rxf7+ {[%clk 0:00:17.3]} 56... Kg6
{[%clk 0:00:18.9]} 57. Rb7 {[%clk 0:00:17.2]} 57... Rd8 {[%clk 0:00:19.9]} 58.
Rb5 {[%clk 0:00:17.7]} 58... Rd6 {[%clk 0:00:20.6]} 59. f4 {[%clk 0:00:18.4]}
59... Bf6 {[%clk 0:00:21.1]} 60. Be5 {[%clk 0:00:17.6]} 60... Bxe5 {[%clk
0:00:20.4]} 61. fxe5 {[%clk 0:00:18.4]} 61... Rd7 {[%clk 0:00:22.3]} 62. Kf3
{[%clk 0:00:19.8]} 62... Rc7 {[%clk 0:00:21.6]} 63. d6 {[%clk 0:00:20.7]} 63...
Rc1 {[%clk 0:00:22.6]} 64. Rd5 {[%clk 0:00:21.7]} 64... Rc8 {[%clk 0:00:22]} 65.
Kf4 {[%clk 0:00:21]} 65... Rd8 {[%clk 0:00:22.2]} 66. d7 {[%clk 0:00:20.9]}
66... Kf7 {[%clk 0:00:22.9]} 67. Kxf5 {[%clk 0:00:22.2]} 67... Ke7 {[%clk
0:00:24.8]} 68. e6 {[%clk 0:00:23.2]} 68... Rf8+ {[%clk 0:00:25.9]} 69. Ke5
{[%clk 0:00:24.8]} 69... Rd8 {[%clk 0:00:27]} 70. g4 {[%clk 0:00:25.3]} 1-0

[Event "*** Titled Tuesday 3|2 Blitz"]
[Site "Chess.com"]
[Date "2015.11.03"]
[Round "4"]
[White "Cryptochess"]
[Black "AdrianaNikolova"]
[Result "1-0"]
[WhiteElo "2420"]
[BlackElo "2212"]
[TimeControl "180+2"]
[EndTime "17:49:08 PST"]
[Termination "Cryptochess won on time"]

1. e4 {[%clk 0:03:01.9]} 1... c5 {[%clk 0:03:00.6]} 2. Nc3 {[%clk 0:03:02.4]}
2... Nc6 {[%clk 0:03:01.6]} 3. g3 {[%clk 0:03:03.9]} 3... g6 {[%clk 0:03:03]} 4.
Bg2 {[%clk 0:03:05.4]} 4... Bg7 {[%clk 0:03:04.6]} 5. d3 {[%clk 0:03:07.1]} 5...
Rb8 {[%clk 0:03:05.5]} 6. Be3 {[%clk 0:03:06.8]} 6... d6 {[%clk 0:03:06.6]} 7.
Qd2 {[%clk 0:03:06.3]} 7... b5 {[%clk 0:03:07.4]} 8. Nge2 {[%clk 0:03:04.6]}
8... b4 {[%clk 0:03:08.1]} 9. Nd1 {[%clk 0:03:05.5]} 9... Qb6 {[%clk 0:03:04]}
10. O-O {[%clk 0:03:06.4]} 10... e6 {[%clk 0:03:03.1]} 11. f4 {[%clk 0:03:03.6]}
11... Nge7 {[%clk 0:03:03.8]} 12. c3 {[%clk 0:03:00.5]} 12... bxc3 {[%clk
0:02:59.2]} 13. bxc3 {[%clk 0:03:00.6]} 13... O-O {[%clk 0:03:01]} 14. g4 {[%clk
0:02:52.6]} 14... f5 {[%clk 0:02:57.8]} 15. gxf5 {[%clk 0:02:54.5]} 15... exf5
{[%clk 0:02:58.7]} 16. Ng3 {[%clk 0:02:49.2]} 16... Ba6 {[%clk 0:02:35.9]} 17.
Re1 {[%clk 0:02:47.4]} 17... fxe4 {[%clk 0:02:17.6]} 18. Nxe4 {[%clk 0:02:29]}
18... Nf5 {[%clk 0:02:14.8]} 19. Bf2 {[%clk 0:02:23]} 19... Qb5 {[%clk
0:01:28.5]} 20. Ng5 {[%clk 0:01:59.2]} 20... h6 {[%clk 0:00:54.6]} 21. Ne6
{[%clk 0:01:49.1]} 21... Rf6 {[%clk 0:00:48.1]} 22. Nc7 {[%clk 0:01:11.3]} 22...
Qb7 {[%clk 0:00:41.2]} 23. Ne8 {[%clk 0:01:01.8]} 23... Kh7 {[%clk 0:00:19.5]}
24. Nxf6+ {[%clk 0:00:57.5]} 24... Bxf6 {[%clk 0:00:21.4]} 25. Re6 {[%clk
0:00:55.6]} 25... Be7 {[%clk 0:00:19.4]} 26. Ne3 {[%clk 0:00:53]} 26... Qd7
{[%clk 0:00:19.9]} 27. Nxf5 {[%clk 0:00:50.2]} 27... Qxe6 {[%clk 0:00:18.9]} 28.
Nxe7 {[%clk 0:00:42.8]} 28... Nxe7 {[%clk 0:00:20.8]} 29. Re1 {[%clk 0:00:43]}
29... Qf6 {[%clk 0:00:22.1]} 30. d4 {[%clk 0:00:41.1]} 30... Nf5 {[%clk
0:00:17.4]} 31. dxc5 {[%clk 0:00:39.1]} 31... dxc5 {[%clk 0:00:19.3]} 32. Qd7+
{[%clk 0:00:39.5]} 32... Qg7 {[%clk 0:00:16.7]} 33. Qxg7+ {[%clk 0:00:22.8]}
33... Kxg7 {[%clk 0:00:18.6]} 34. Bxc5 {[%clk 0:00:24.1]} 34... Rc8 {[%clk
0:00:20]} 35. Bd4+ {[%clk 0:00:23]} 35... Nxd4 {[%clk 0:00:19.4]} 36. cxd4
{[%clk 0:00:24.9]} 36... Kf6 {[%clk 0:00:18.4]} 37. d5 {[%clk 0:00:24.7]} 37...
Bc4 {[%clk 0:00:17.7]} 38. Re6+ {[%clk 0:00:24.4]} 38... Kf5 {[%clk 0:00:18.2]}
39. Re7 {[%clk 0:00:23.9]} 39... Kxf4 {[%clk 0:00:17]} 40. Rxa7 {[%clk
0:00:23.7]} 40... Rc5 {[%clk 0:00:12.1]} 41. d6 {[%clk 0:00:21.1]} 41... Be6
{[%clk 0:00:12.8]} 42. Re7 {[%clk 0:00:20.8]} 42... Bf5 {[%clk 0:00:13.3]} 43.
Re2 {[%clk 0:00:17.9]} 43... Rc1+ {[%clk 0:00:13.4]} 44. Kf2 {[%clk 0:00:19]}
44... Rd1 {[%clk 0:00:15]} 45. Rb2 {[%clk 0:00:12.6]} 45... Rxd6 {[%clk
0:00:15.7]} 46. Rb4+ {[%clk 0:00:13.8]} 46... Kg5 {[%clk 0:00:17]} 47. h4+
{[%clk 0:00:14.7]} 47... Kf6 {[%clk 0:00:16.3]} 48. a4 {[%clk 0:00:16.2]} 48...
Rd2+ {[%clk 0:00:17.5]} 49. Kg3 {[%clk 0:00:16.2]} 49... Rd3+ {[%clk 0:00:18.7]}
50. Kf2 {[%clk 0:00:17.5]} 50... Rd2+ {[%clk 0:00:19.8]} 51. Kf3 {[%clk
0:00:17.5]} 51... Rd3+ {[%clk 0:00:21]} 52. Ke2 {[%clk 0:00:18.1]} 52... Ra3
{[%clk 0:00:22.9]} 53. Bd5 {[%clk 0:00:17.4]} 53... Ke5 {[%clk 0:00:23.8]} 54.
Bc6 {[%clk 0:00:18.4]} 54... h5 {[%clk 0:00:18.4]} 55. Bb5 {[%clk 0:00:15.4]}
55... Kd5 {[%clk 0:00:17.9]} 56. Rb2 {[%clk 0:00:16.1]} 56... Ke4 {[%clk
0:00:17.7]} 57. Rd2 {[%clk 0:00:15.9]} 57... Kf4 {[%clk 0:00:18.4]} 58. Rd4+
{[%clk 0:00:16.2]} 58... Kg3 {[%clk 0:00:15.2]} 59. Kd2 {[%clk 0:00:12.5]} 59...
Rf3 {[%clk 0:00:14.9]} 60. a5 {[%clk 0:00:12.2]} 60... Rf4 {[%clk 0:00:16.1]}
61. Rxf4 {[%clk 0:00:06]} 61... Kxf4 {[%clk 0:00:18]} 62. Bc6 {[%clk 0:00:07.7]}
62... Bc8 {[%clk 0:00:18.3]} 63. Be8 {[%clk 0:00:08.7]} 63... Bf5 {[%clk
0:00:14.9]} 64. Bc6 {[%clk 0:00:06.2]} 64... Bc8 {[%clk 0:00:15.8]} 65. Kc3
{[%clk 0:00:06.4]} 65... Kg4 {[%clk 0:00:16.9]} 66. Be8 {[%clk 0:00:07.6]} 66...
Bf5 {[%clk 0:00:15.9]} 67. Kd4 {[%clk 0:00:08.4]} 67... Kxh4 {[%clk 0:00:13.9]}
68. a6 {[%clk 0:00:05.6]} 68... Bc8 {[%clk 0:00:14.6]} 69. a7 {[%clk 0:00:07.2]}
69... Bb7 {[%clk 0:00:15.7]} 70. Bxg6 {[%clk 0:00:08.8]} 70... Kg4 {[%clk
0:00:12.1]} 71. Be4 {[%clk 0:00:10]} 71... Bxe4 {[%clk 0:00:11.7]} 72. Kxe4
{[%clk 0:00:11.9]} 72... h4 {[%clk 0:00:13.6]} 73. a8=Q {[%clk 0:00:13.5]} 73...
h3 {[%clk 0:00:14.5]} 74. Qg8+ {[%clk 0:00:15.1]} 74... Kh4 {[%clk 0:00:16]} 75.
Kf4 {[%clk 0:00:16.2]} 1-0

[Event "*** Titled Tuesday 3|2 Blitz"]
[Site "Chess.com"]
[Date "2015.11.03"]
[Round "4"]
[White "TheLancer"]
[Black "Aygehovit1992"]
[Result "0-1"]
[WhiteElo "2316"]
[BlackElo "2475"]
[TimeControl "180+2"]
[EndTime "17:49:13 PST"]
[Termination "Aygehovit1992 won by resignation"]

1. e4 {[%clk 0:03:01.9]} 1... c5 {[%clk 0:02:59.4]} 2. Nc3 {[%clk 0:02:59.8]}
2... Nc6 {[%clk 0:02:59.9]} 3. f4 {[%clk 0:03:01.1]} 3... g6 {[%clk 0:02:58.4]}
4. Nf3 {[%clk 0:03:01.3]} 4... Bg7 {[%clk 0:02:59.7]} 5. Bc4 {[%clk 0:03:03]}
5... e6 {[%clk 0:02:59.5]} 6. f5 {[%clk 0:03:04.6]} 6... Nge7 {[%clk 0:02:56.5]}
7. fxe6 {[%clk 0:03:04.5]} 7... dxe6 {[%clk 0:02:56.4]} 8. d3 {[%clk 0:03:05.8]}
8... a6 {[%clk 0:02:53.2]} 9. a4 {[%clk 0:03:02.9]} 9... Nd4 {[%clk 0:02:53.8]}
10. O-O {[%clk 0:02:48.2]} 10... O-O {[%clk 0:02:54.5]} 11. Nxd4 {[%clk
0:02:47.1]} 11... cxd4 {[%clk 0:02:55.2]} 12. Ne2 {[%clk 0:02:47.7]} 12... Bd7
{[%clk 0:02:50.1]} 13. a5 {[%clk 0:02:44.8]} 13... Nc6 {[%clk 0:02:44.7]} 14.
Bd2 {[%clk 0:02:44.9]} 14... Ne5 {[%clk 0:02:45.2]} 15. Bb3 {[%clk 0:02:38.4]}
15... Rc8 {[%clk 0:02:31.7]} 16. Qe1 {[%clk 0:02:01.4]} 16... Ng4 {[%clk
0:02:06.8]} 17. Bb4 {[%clk 0:01:39.6]} 17... Re8 {[%clk 0:02:03.6]} 18. Qg3
{[%clk 0:01:28.7]} 18... Ne3 {[%clk 0:02:01.7]} 19. Qf2 {[%clk 0:01:29.7]} 19...
Nxf1 {[%clk 0:02:01.2]} 20. Rxf1 {[%clk 0:01:30.5]} 20... f6 {[%clk 0:01:58.8]}
21. Nxd4 {[%clk 0:01:19.9]} 21... Kh8 {[%clk 0:01:59.5]} 22. e5 {[%clk
0:01:16.1]} 22... fxe5 {[%clk 0:01:58.2]} 23. Nf3 {[%clk 0:01:08.3]} 23... e4
{[%clk 0:01:46.5]} 24. dxe4 {[%clk 0:01:03.6]} 24... Bb5 {[%clk 0:01:47]} 25.
Re1 {[%clk 0:00:46]} 25... Bc4 {[%clk 0:01:30.7]} 26. Ba4 {[%clk 0:00:33.3]}
26... Bb5 {[%clk 0:01:31.7]} 27. Bb3 {[%clk 0:00:34.2]} 27... Qf6 {[%clk
0:01:27.2]} 28. e5 {[%clk 0:00:25]} 28... Qf4 {[%clk 0:01:23.1]} 29. c3 {[%clk
0:00:18.6]} 29... Bc6 {[%clk 0:01:19.3]} 30. Bd1 {[%clk 0:00:17.5]} 30... Bxf3
{[%clk 0:01:17.6]} 31. Bxf3 {[%clk 0:00:19.4]} 31... Rc7 {[%clk 0:00:52.8]} 32.
Bd6 {[%clk 0:00:17.4]} 32... Rf7 {[%clk 0:00:49.3]} 33. Re4 {[%clk 0:00:15.5]}
33... Qc1+ {[%clk 0:00:49.2]} 34. Re1 {[%clk 0:00:16.3]} 34... Qg5 {[%clk
0:00:49.3]} 35. Qe3 {[%clk 0:00:12.7]} 35... Qxe3+ {[%clk 0:00:46.3]} 36. Rxe3
{[%clk 0:00:14.6]} 36... Bf8 {[%clk 0:00:47.4]} 37. c4 {[%clk 0:00:11.3]} 37...
Bxd6 {[%clk 0:00:23.6]} 38. exd6 {[%clk 0:00:13.2]} 38... Kg7 {[%clk 0:00:21.9]}
39. c5 {[%clk 0:00:09.6]} 39... Rc8 {[%clk 0:00:20.3]} 40. b4 {[%clk 0:00:09.9]}
40... Kf6 {[%clk 0:00:21.5]} 41. Re4 {[%clk 0:00:04.9]} 41... e5 {[%clk
0:00:21.4]} 42. Bg4 {[%clk 0:00:04.7]} 42... Rd8 {[%clk 0:00:22.3]} 43. Bf3
{[%clk 0:00:05.4]} 43... h5 {[%clk 0:00:23.2]} 44. h4 {[%clk 0:00:06.2]} 44...
Ke6 {[%clk 0:00:23.8]} 45. Re2 {[%clk 0:00:06.8]} 45... Rf4 {[%clk 0:00:23.9]}
46. Rb2 {[%clk 0:00:06.4]} 46... e4 {[%clk 0:00:23.9]} 47. Be2 {[%clk
0:00:06.3]} 47... Kd5 {[%clk 0:00:22]} 48. Rd2+ {[%clk 0:00:06.6]} 48... Ke5
{[%clk 0:00:22.8]} 49. g3 {[%clk 0:00:05.5]} 49... Rf7 {[%clk 0:00:21.3]} 50.
Bc4 {[%clk 0:00:06.4]} 50... Rf3 {[%clk 0:00:17.1]} 51. Kg2 {[%clk 0:00:07.2]}
51... Rc3 {[%clk 0:00:17.6]} 52. Bd5 {[%clk 0:00:07.3]} 52... Rd7 {[%clk
0:00:16.2]} 53. Ba2 {[%clk 0:00:04.3]} 53... e3 {[%clk 0:00:15]} 54. Re2 {[%clk
0:00:05.5]} 54... Kd4 {[%clk 0:00:16]} 55. Kf3 {[%clk 0:00:04.2]} 55... Rd8
{[%clk 0:00:17.4]} 56. Be6 {[%clk 0:00:02.2]} 56... Rf8+ {[%clk 0:00:18.4]} 57.
Kg2 {[%clk 0:00:04.1]} 57... Kd3 {[%clk 0:00:17.7]} 58. Re1 {[%clk 0:00:05.6]}
58... Rc2+ {[%clk 0:00:17.8]} 59. Kh3 {[%clk 0:00:06.4]} 59... Rff2 {[%clk
0:00:17.4]} 60. g4 {[%clk 0:00:07.9]} 60... Rh2+ {[%clk 0:00:17.8]} 61. Kg3
{[%clk 0:00:09.3]} 61... Rcg2+ {[%clk 0:00:18.8]} 62. Kf4 {[%clk 0:00:10.9]}
62... Rf2+ {[%clk 0:00:18.7]} 63. Kg5 {[%clk 0:00:11.9]} 63... hxg4 {[%clk
0:00:18.9]} 64. d7 {[%clk 0:00:13.3]} 64... Rf8 {[%clk 0:00:19.7]} 65. Kxg6
{[%clk 0:00:13]} 65... Kd2 {[%clk 0:00:19.8]} 66. Ra1 {[%clk 0:00:12.8]} 66...
e2 {[%clk 0:00:20.8]} 67. Kg7 {[%clk 0:00:14.2]} 67... Rd8 {[%clk 0:00:21.9]}
68. Kf6 {[%clk 0:00:13.2]} 68... e1=Q {[%clk 0:00:21.6]} 69. Rxe1 {[%clk
0:00:14.4]} 69... Kxe1 {[%clk 0:00:22.8]} 70. Bxg4 {[%clk 0:00:15.9]} 70... Rxh4
{[%clk 0:00:23.7]} 71. Be6 {[%clk 0:00:17]} 71... Rxb4 {[%clk 0:00:23.8]} 72.
Ke7 {[%clk 0:00:18.1]} 72... Rh8 {[%clk 0:00:24.5]} 73. d8=Q {[%clk 0:00:18.7]}
73... Rxd8 {[%clk 0:00:25.7]} 74. Kxd8 {[%clk 0:00:20.6]} 74... Rb5 {[%clk
0:00:27.2]} 75. Kc7 {[%clk 0:00:20.9]} 75... Kd2 {[%clk 0:00:26.7]} 76. Bc8
{[%clk 0:00:18.2]} 76... Rxa5 {[%clk 0:00:27.2]} 77. Kxb7 {[%clk 0:00:15]} 77...
Rxc5 {[%clk 0:00:28.1]} 78. Bd7 {[%clk 0:00:16.6]} 78... Ra5 {[%clk 0:00:26.3]}
79. Kb6 {[%clk 0:00:17.6]} 79... Ra1 {[%clk 0:00:27.6]} 80. Bc8 {[%clk
0:00:19.5]} 80... a5 {[%clk 0:00:28]} 81. Kb5 {[%clk 0:00:21.1]} 81... Kc3
{[%clk 0:00:29.4]} 82. Be6 {[%clk 0:00:21]} 82... a4 {[%clk 0:00:30.4]} 83. Ka5
{[%clk 0:00:18.6]} 83... a3 {[%clk 0:00:31.6]} 84. Ka4 {[%clk 0:00:20.2]} 84...
Kb2 {[%clk 0:00:33.1]} 0-1